bitfinex-derivatives/quotes_ETHF0:USTF0_20250110
["timestamp","ask_amount","ask_price","bid_price","bid_amount"]
[1736518668735,0.76461,3269.8,3268.5,3.2078]
[1736518668736,3.2078,3269.6,3268.5,3.2078]
[1736518668938,3.2078,3269.2,3268.6,0.30595]
[1736518669146,3.2078,3268.8,3268.2,0.30599]
[1736518669436,0.30597,3268.5,3268.2,0.30599]
[1736518669636,0.30596,3268.6,3268.3,0.30597]
[1736518669828,0.30597,3268.4,3268.3,40.8]
[1736518670034,0.30603,3267.9,3267.7,3.2078]
[1736518670338,0.30601,3268.1,3267.8,0.30602]
[1736518670539,0.30601,3268.0,3267.8,0.30603]
[1736518670739,0.306,3268.1,3267.8,0.30603]
[1736518670939,0.306,3268.1,3267.7,44.0078]
[1736518670940,0.30602,3267.9,3267.7,44.0078]
[1736518671134,0.30602,3267.9,3267.7,40.8]
[1736518671335,3.2078,3268.0,3267.2,3.2078]
[1736518671637,1.2181,3267.9,3267.7,0.30604]
[1736518671835,1.2181,3267.9,3267.2,3.2078]
[1736518672038,0.30603,3267.8,3267.4,0.30606]
[1736518672335,1.2181,3267.9,3267.6,0.30604]
[1736518672540,1.2181,3267.9,3267.2,3.2078]
[1736518672935,0.30605,3267.6,3267.2,3.51388]
[1736518673241,1.2181,3267.9,3267.2,3.2078]
[1736518673442,1.52412,3267.9,3267.5,0.30605]
[1736518673640,3.2078,3268.2,3267.2,3.2078]
[1736518673836,3.687,3268.8,3267.6,3.2078]
[1736518674036,0.76489,3268.6,3267.6,3.2078]
[1736518674235,3.687,3268.8,3268.0,3.2078]
[1736518674738,3.687,3268.8,3268.4,0.30597]
[1736518674931,0.30595,3268.7,3268.4,0.30597]
[1736518675135,3.687,3268.8,3268.5,0.30596]
[1736518675338,0.30592,3269.0,3268.4,3.2078]
[1736518675538,0.30592,3269.0,3268.7,0.30594]
[1736518675736,3.2078,3269.2,3268.4,3.2078]
[1736518675948,0.30593,3268.9,3268.5,0.30596]
[1736518676437,0.30593,3268.8,3268.5,0.30596]
[1736518676646,0.30594,3268.7,3268.4,3.51377]
[1736518676846,0.76477,3269.1,3268.4,3.2078]
[1736518677046,0.30595,3268.7,3268.4,3.2078]
[1736518677346,0.30595,3268.7,3268.4,3.51377]
[1736518677543,0.30596,3268.5,3268.4,3.2078]
[1736518677845,3.2078,3269.2,3268.4,3.2078]
[1736518678949,0.30596,3268.6,3268.4,3.2078]
[1736518679148,0.30599,3268.2,3267.9,0.30602]
[1736518679342,0.30601,3268.0,3267.9,40.8]
[1736518679745,0.30601,3268.0,3267.7,3.51383]
[1736518680047,0.30604,3267.7,3267.4,3.18363848]
[1736518680245,3.7241,3268.4,3267.5,40.8]
[1736518680748,0.30599,3268.2,3267.9,0.30602]
[1736518680948,0.30601,3268.1,3267.7,0.30603]
[1736518681143,0.30601,3268.0,3267.7,0.30603]
[1736518681449,0.30605,3267.6,3267.5,40.8]
[1736518682143,0.30605,3267.6,3266.7,4.76377764]
[1736518682144,0.30606,3267.4,3266.9,3.2078]
[1736518682346,2.5137,3267.5,3266.9,3.2078]
[1736518682645,0.30608,3267.3,3267.0,40.8]
[1736518683150,0.30608,3267.3,3267.1,0.30609]
[1736518683551,0.30609,3267.1,3267.0,40.8]
[1736518683750,2.5137,3267.5,3266.9,3.2078]
[1736518684253,0.30609,3267.2,3266.9,3.51391]
[1736518684550,0.30608,3267.3,3266.9,3.2078]
[1736518684844,2.5137,3267.5,3266.9,3.2078]
[1736518685046,3.2078,3268.1,3267.7,0.30603]
[1736518685249,3.2078,3268.1,3267.3,3.97297]
[1736518685250,0.30601,3268.0,3267.8,0.30602]
[1736518685544,0.76488,3268.7,3267.8,0.30602]
[1736518685545,4.4319,3268.9,3268.4,0.30596]
[1736518685753,5.6312,3268.9,3268.1,3.2078]
[1736518685943,5.6312,3268.9,3267.7,3.2078]
[1736518685944,0.30601,3268.0,3267.7,3.2078]
[1736518686141,0.30599,3268.2,3267.7,3.2078]
[1736518686349,0.76491,3268.5,3267.8,0.30603]
[1736518686648,0.30601,3268.0,3267.7,3.51383]
[1736518686854,0.76494,3268.4,3267.4,3.2078]
[1736518686855,3.2078,3268.2,3267.4,3.2078]
[1736518687146,1.738,3268.8,3266.9,10.35346646]
[1736518687147,3.2078,3267.7,3266.9,10.35346646]
[1736518687340,0.30608,3267.2,3267.1,4.76377764]
[1736518687547,0.76516,3267.5,3266.9,3.2078]
[1736518687548,0.3061,3267.1,3266.9,3.2078]
[1736518687743,3.2078,3267.3,3266.6,4.76377764]
[1736518687953,0.3061,3267.1,3266.8,0.30612]
[1736518688153,1.1993,3267.2,3266.6,4.76377764]
[1736518688358,0.30611,3267.0,3266.7,0.30613]
[1736518688649,1.1993,3267.2,3266.6,4.76377764]
[1736518688844,0.30613,3266.7,3266.6,4.76377764]
[1736518689043,0.76524,3267.1,3266.4,3.2078]
[1736518689251,0.30613,3266.7,3266.4,3.51395]
[1736518689450,0.30612,3266.9,3266.5,41.10614]
[1736518689660,3.2078,3267.7,3266.8,3.2078]
[1736518689946,1.2344,3267.9,3267.2,3.2078]
[1736518690252,1.2344,3267.9,3267.5,40.8]
[1736518690447,0.30605,3267.6,3267.5,40.8]
[1736518690649,1.2344,3267.9,3267.5,40.8]
[1736518691245,0.30603,3267.8,3267.5,41.10605]
[1736518691446,1.2344,3267.9,3267.6,0.30604]
[1736518691952,1.54042,3267.9,3267.6,0.30604]
[1736518692152,0.30604,3267.8,3267.5,41.10605]
[1736518692656,3.2078,3268.1,3267.5,40.8]
[1736518692850,4.4018,3268.6,3267.7,3.2078]
[1736518693051,0.30598,3268.3,3267.7,7.3578]
[1736518693247,4.4018,3268.6,3267.7,3.2078]
[1736518693454,1.194,3268.6,3268.5,0.30596]
[1736518693751,1.194,3268.6,3268.2,3.2078]
[1736518694255,3.2078,3268.4,3267.5,40.8]
[1736518694451,0.30601,3268.0,3267.7,0.30604]
[1736518694749,3.2078,3268.4,3267.5,40.8]
[1736518694953,1.194,3268.6,3268.1,3.2078]
[1736518695353,1.194,3268.6,3268.2,0.30598]
[1736518695750,1.194,3268.6,3268.3,0.30598]
[1736518695951,1.194,3268.6,3268.1,3.2078]
[1736518696357,0.30599,3268.2,3268.1,3.2078]
[1736518696851,0.76491,3268.5,3267.5,40.8]
[1736518697047,0.30603,3267.8,3267.3,3.2078]
[1736518697254,0.30602,3268.0,3267.3,3.2078]
[1736518697454,0.30602,3268.0,3267.6,0.30604]
[1736518697650,0.30597,3268.4,3267.6,0.30604]
[1736518697851,0.76491,3268.5,3267.6,0.30604]
[1736518697852,0.30602,3268.0,3267.6,0.30604]
[1736518698054,0.30602,3268.0,3267.4,40.8]
[1736518698258,1.194,3268.6,3268.2,0.30598]
[1736518698453,1.194,3268.6,3267.7,3.2078]
[1736518698659,1.194,3268.6,3267.4,40.8]
[1736518698660,1.194,3268.6,3268.5,0.30596]
[1736518700057,1.738,3269.4,3268.5,0.30596]
[1736518700058,8.37947016,3269.7,3268.5,9.9458]
[1736518700250,8.37947016,3269.7,3269.1,3.2078]
[1736518700447,8.37947016,3269.7,3269.6,0.30586]
[1736518700655,8.37947016,3269.7,3269.2,40.8]
[1736518700956,8.37947016,3269.7,3269.6,0.30586]
[1736518701257,3.2078,3270.3,3269.5,3.2078]
[1736518701556,11.58727016,3270.7,3269.9,3.2078]
[1736518701857,1.269,3270.6,3270.0,0.30582]
[1736518702058,0.30578,3270.5,3269.9,3.51362]
[1736518702259,0.30578,3270.5,3270.0,0.30582]
[1736518702463,1.57477,3270.6,3270.0,0.30582]
[1736518702756,0.30581,3270.1,3269.9,3.2078]
[1736518702963,1.269,3270.6,3269.9,3.2078]
[1736518702964,0.3058,3270.3,3269.9,3.2078]
[1736518703164,1.269,3270.6,3269.9,3.2078]
[1736518703968,1.269,3270.6,3270.3,0.30579]
[1736518704256,1.269,3270.6,3269.9,3.2078]
[1736518704456,1.269,3270.6,3270.5,0.30577]
[1736518704961,1.269,3270.6,3269.9,3.2078]
[1736518705151,1.269,3270.6,3270.3,0.30579]
[1736518705357,1.269,3270.6,3269.9,3.2078]
[1736518705762,1.269,3270.6,3270.1,0.30581]
[1736518705763,0.30578,3270.5,3270.1,0.30581]
[1736518705959,1.269,3270.6,3270.1,0.30581]
[1736518706259,0.30578,3270.5,3270.1,0.30581]
[1736518706461,0.30579,3270.4,3269.9,3.2078]
[1736518706962,0.30579,3270.4,3270.0,0.30582]
[1736518707165,3.2078,3270.5,3269.9,3.2078]
[1736518707659,3.2078,3270.5,3270.0,0.30581]
[1736518707660,3.51358,3270.5,3270.0,0.30581]
[1736518707859,3.51358,3270.5,3270.0,0.30582]
[1736518708059,1.269,3270.6,3269.9,3.2078]
[1736518708266,1.269,3270.6,3270.4,0.30578]
[1736518708462,1.269,3270.6,3269.9,3.2078]
[1736518708661,1.57477,3270.6,3270.0,41.10582]
[1736518708970,1.269,3270.6,3270.3,0.30579]
[1736518709263,1.57477,3270.6,3270.2,0.3058]
[1736518709563,0.30582,3270.1,3269.9,3.2078]
[1736518709764,0.30582,3270.0,3269.9,3.2078]
[1736518710062,3.2078,3270.4,3269.5,0.30586]
[1736518710366,0.30584,3269.9,3269.5,0.30586]
[1736518710570,0.76449,3270.3,3269.3,3.2078]
[1736518710862,0.30589,3269.3,3269.0,40.8]
[1736518711169,3.2078,3270.0,3268.8,3.2078]
[1736518711465,0.30587,3269.6,3269.2,0.30589]
[1736518711765,1.276,3269.8,3268.9,40.8]
[1736518712066,0.76465,3269.6,3268.9,40.8]
[1736518712261,0.3059,3269.3,3269.0,0.30591]
[1736518712466,0.30589,3269.3,3269.0,0.30591]
[1736518712661,1.276,3269.8,3268.9,40.8]
[1736518712867,1.276,3269.8,3269.2,3.2078]
[1736518713272,1.58185,3269.8,3269.3,0.30589]
[1736518713457,1.276,3269.8,3269.2,3.2078]
[1736518713665,3.2078,3271.0,3269.7,3.32554756]
[1736518713968,3.2078,3271.0,3270.7,0.30575]
[1736518713969,0.30574,3271.0,3270.7,0.30575]
[1736518714164,0.30573,3271.0,3270.4,3.2078]
[1736518714469,3.7838,3271.1,3270.4,3.2078]
[1736518714660,3.7838,3271.1,3270.4,3.51358]
[1736518714661,0.30576,3270.8,3270.4,3.51358]
[1736518714865,3.7838,3271.1,3270.4,3.2078]
[1736518715362,4.08953,3271.1,3270.7,0.30575]
[1736518715566,0.30573,3271.0,3270.5,0.30577]
[1736518715765,0.30575,3270.8,3270.5,0.30577]
[1736518715960,3.7838,3271.1,3270.5,0.30577]
[1736518716157,4.54811,3271.1,3270.4,3.2078]
[1736518716364,0.30577,3270.5,3270.4,3.2078]
[1736518716771,4.54812,3271.1,3270.4,3.2078]
[1736518716963,0.30575,3270.8,3270.6,0.30576]
[1736518717269,3.7838,3271.1,3270.4,3.2078]
[1736518717467,3.7838,3271.1,3270.5,40.8]
[1736518717770,0.30576,3270.7,3270.5,41.10577]
[1736518717970,3.7838,3271.1,3270.5,40.8]
[1736518718268,0.30577,3270.5,3270.4,3.2078]
[1736518718671,3.2078,3270.7,3269.9,3.2078]
[1736518718865,0.76449,3270.4,3269.3,0.7051]
[1736518719167,2.4403,3270.3,3269.3,40.8]
[1736518719465,3.623,3270.3,3269.3,40.8]
[1736518719661,0.30582,3270.1,3269.8,0.30584]
[1736518719857,0.30583,3270.0,3269.7,0.30584]
[1736518720168,0.30581,3270.2,3269.9,0.30583]
[1736518720361,3.2078,3271.0,3270.0,3.2078]
[1736518720569,1.2992,3270.9,3270.5,3.2078]
[1736518720766,1.2992,3270.9,3270.8,0.30575]
[1736518721465,1.1827,3271.3,3271.2,0.30571]
[1736518721658,1.1827,3271.3,3270.8,40.8]
[1736518721659,8.37947016,3271.7,3271.0,4.9398]
[1736518721863,13.87633146,3272.8,3271.0,4.9398]
[1736518721864,0.30559,3272.5,3271.6,6.53334756]
[1736518722065,0.30558,3272.6,3272.1,0.30562]
[1736518722269,8.24031283,3272.7,3272.2,40.8]
[1736518722662,8.24031283,3272.7,3272.6,3.32554756]
[1736518722863,9.81973146,3272.8,3272.6,8.32554756]
[1736518723073,7.47968701,3272.8,3272.7,0.30557]
[1736518723273,6.19957917,3272.8,3272.7,0.30557]
[1736518723469,0.30545,3274.0,3272.7,0.30557]
[1736518723470,3.2078,3274.3,3273.3,0.30551]
[1736518723672,3.05599939,3273.7,3273.3,0.30551]
[1736518724166,3.05599939,3273.7,3273.6,3.2078]
[1736518724772,3.51323,3274.3,3273.6,3.51328]
[1736518725070,3.05599939,3273.9,3273.6,3.2078]
[1736518725271,3.2078,3274.8,3273.7,3.32554756]
[1736518725462,3.05599939,3274.5,3274.4,3.2078]
[1736518725667,3.05599939,3274.6,3274.4,3.2078]
[1736518726266,2.384,3275.7,3274.4,3.2078]
[1736518726267,0.30516,3277.1,3276.2,0.30524]
[1736518726464,12.6830616,3279.0,3277.0,6.53334756]
[1736518726770,3.2078,3279.6,3278.9,3.32554756]
[1736518726974,3.2078,3280.1,3279.5,3.32554756]
[1736518727269,2.462,3281.6,3279.2,1.731]
[1736518727270,0.03550126,3279.8,3279.2,1.731]
[1736518727467,1.2324,3281.6,3279.7,6.53334756]
[1736518727671,1.2324,3281.6,3280.8,3.32554756]
[1736518727672,0.30481,3280.9,3280.8,3.32554756]
[1736518727863,2.53396127,3279.6,3279.3,6.53334756]
[1736518728168,2.53396127,3280.0,3279.4,0.30494]
[1736518728368,3.51266,3280.4,3279.5,3.32554756]
[1736518728568,2.53396127,3279.4,3278.8,3.32554756]
[1736518728772,2.53396127,3279.4,3279.3,3.2078]
[1736518728974,0.30484,3280.5,3279.3,3.51275]
[1736518729172,3.51266,3280.3,3279.6,3.2078]
[1736518729670,5.74176127,3279.7,3279.0,3.2078]
[1736518729869,2.53396127,3278.9,3277.8,3.32554756]
[1736518730068,3.2078,3280.1,3278.8,3.2078]
[1736518730270,3.2078,3279.7,3277.6,3.32554756]
[1736518730570,3.2078,3279.7,3278.6,3.2078]
[1736518730766,3.2078,3279.7,3277.6,3.32554756]
[1736518730767,3.2078,3279.3,3278.0,3.2078]
[1736518730972,3.2078,3279.3,3278.6,3.2078]
[1736518731162,3.2078,3279.3,3278.7,0.30501]
[1736518731367,2.53396127,3279.2,3278.1,3.32554756]
[1736518731572,2.53396127,3279.3,3278.9,0.30499]
[1736518731873,3.2078,3280.1,3279.2,3.2078]
[1736518731874,2.53396127,3279.9,3279.2,3.2078]
[1736518732074,2.53396127,3280.0,3279.6,3.2078]
[1736518732270,2.53396127,3279.9,3279.6,3.2078]
[1736518732775,0.03549319,3279.8,3279.6,3.2078]
[1736518733368,0.03549319,3279.8,3279.4,0.30494]
[1736518733671,0.03549319,3279.8,3279.2,3.2078]
[1736518733672,0.04181105,3279.6,3279.2,3.2078]
[1736518733871,3.2078,3279.3,3278.8,3.2078]
[1736518734172,5.68664465,3279.3,3278.8,3.2078]
[1736518734372,2.47884465,3279.2,3278.8,3.2078]
[1736518734577,2.47884465,3278.9,3278.8,3.2078]
[1736518734769,2.8256457,3278.9,3278.8,3.2078]
[1736518734965,5.7284557,3278.9,3277.1,3.32554756]
[1736518735277,1.2294,3279.2,3277.5,0.30511]
[1736518735278,3.14104374,3277.9,3277.5,0.30511]
[1736518735569,3.14104374,3277.9,3277.4,0.30513]
[1736518735766,3.14104374,3277.9,3277.1,3.32554756]
[1736518735966,3.14104374,3277.9,3276.9,3.2078]
[1736518735967,2.47884465,3277.7,3276.9,3.2078]
[1736518736167,3.14104374,3277.9,3276.9,3.2078]
[1736518736369,3.51271,3279.8,3278.6,0.30501]
[1736518736573,3.2078,3279.0,3278.3,3.32554756]
[1736518736773,2.47884465,3279.6,3278.4,3.2078]
[1736518737074,3.2078,3279.7,3278.9,3.2078]
[1736518737276,2.47884465,3278.8,3278.0,3.2078]
[1736518737474,5.68664465,3278.7,3278.0,3.2078]
[1736518737776,5.68664465,3278.7,3278.0,3.51287]
[1736518737975,2.47884465,3278.5,3278.0,3.2078]
[1736518738279,5.68664465,3278.3,3277.6,3.2078]
[1736518738479,2.47884465,3278.2,3277.6,3.2078]
[1736518738779,3.2078,3278.4,3277.6,3.2078]
[1736518738980,3.32554756,3278.9,3277.6,3.2078]
[1736518738981,4.389,3278.7,3277.6,3.2078]
[1736518739577,0.30502,3278.6,3277.6,3.2078]
[1736518739777,0.30503,3278.6,3278.0,3.2078]
[1736518739974,1.1812,3278.7,3278.4,3.2078]
[1736518740370,3.32554756,3279.4,3278.4,3.2078]
[1736518740570,0.30497,3279.1,3278.5,40.8]
[1736518740875,0.30503,3278.5,3277.8,3.2078]
[1736518741075,3.2078,3278.8,3277.8,3.2078]
[1736518741273,3.2078,3278.8,3277.9,40.8]
[1736518741878,1.97028,3279.8,3277.9,40.8]
[1736518741879,0.04181105,3278.4,3278.3,0.30505]
[1736518742075,4.4158,3279.8,3278.3,6.53334756]
[1736518742278,1.1973,3279.6,3279.5,3.2078]
[1736518742478,1.50224,3279.6,3279.0,3.2078]
[1736518742677,0.30494,3279.5,3279.0,3.2078]
[1736518742883,0.30494,3279.5,3279.1,40.8]
[1736518743084,1.1973,3279.6,3279.1,40.8]
[1736518743383,1.1973,3279.6,3279.4,3.2078]
[1736518744782,0.30494,3279.5,3279.4,3.2078]
[1736518744990,1.1973,3279.6,3279.1,40.8]
[1736518744991,0.30496,3279.3,3279.1,40.8]
[1736518745183,1.1973,3279.6,3279.0,3.2078]
[1736518745382,1.1973,3279.6,3275.9,1.52635]
[1736518745383,0.30501,3278.8,3278.2,3.2078]
[1736518745887,3.2078,3278.9,3278.2,3.2078]
[1736518746088,0.30505,3278.3,3277.8,3.2078]
[1736518746285,3.2078,3278.5,3277.8,3.2078]
[1736518746491,0.30508,3277.9,3277.8,3.2078]
[1736518746694,1.2198,3278.2,3277.8,3.2078]
[1736518746899,1.1643,3279.2,3277.8,11.53334756]
[1736518747194,0.03547708,3278.5,3278.2,3.2078]
[1736518747399,0.03547708,3278.5,3278.4,0.30504]
[1736518747596,0.03547708,3278.5,3278.3,0.30504]
[1736518747790,0.03547708,3278.5,3278.2,3.51285]
[1736518748095,0.30503,3278.5,3278.2,3.2078]
[1736518748298,0.30505,3278.3,3278.2,3.2078]
[1736518749292,0.30505,3278.3,3277.3,3.32554756]
[1736518749293,0.04181105,3278.3,3277.3,3.2078]
[1736518749492,1.2606,3278.2,3277.3,3.2078]
[1736518749696,0.30512,3277.6,3277.3,3.2078]
[1736518750000,2.02326,3278.2,3277.3,3.2078]
[1736518750296,0.30512,3277.5,3277.4,40.8]
[1736518750692,0.30512,3277.5,3276.5,3.51301]
[1736518750693,3.2078,3277.5,3276.5,3.51301]
[1736518750899,0.30519,3276.8,3276.3,3.32554756]
[1736518751198,0.30519,3276.8,3276.0,3.2078]
[1736518751199,3.2078,3277.0,3276.4,40.8]
[1736518751392,0.04181105,3276.6,3276.5,3.51301]
[1736518751592,0.04181105,3276.6,3276.5,3.2078]
[1736518752702,0.34702105,3276.6,3276.5,3.2078]
[1736518753594,0.38248275,3276.6,3276.5,3.2078]
[1736518754098,3.28507275,3276.6,3276.4,40.8]
[1736518754299,0.76311,3276.3,3275.0,0.30535]
[1736518754499,0.30532,3275.4,3274.9,0.30536]
[1736518754799,0.0836221,3275.2,3275.1,40.8]
[1736518755196,0.0836221,3275.2,3275.1,46.10535]
[1736518755403,3.2078,3276.2,3275.1,40.8]
[1736518755804,0.30529,3275.7,3275.1,40.8]
[1736518756105,0.3053,3275.6,3275.1,40.8]
[1736518756603,3.2078,3275.8,3275.3,0.30533]
[1736518756803,3.2078,3275.8,3275.2,3.2078]
[1736518756804,3.2078,3275.8,3275.4,0.30532]
[1736518757202,3.2078,3275.8,3275.2,3.2078]
[1736518757403,1.203,3276.3,3275.2,3.2078]
[1736518757707,0.30521,3276.6,3276.1,0.30525]
[1736518757901,0.30523,3276.4,3275.9,0.30526]
[1736518758200,4.4218,3276.9,3276.1,3.2078]
[1736518758397,4.4218,3276.9,3276.7,0.30519]
[1736518758598,1.214,3276.9,3276.4,0.30522]
[1736518758804,1.214,3276.9,3276.2,0.30524]
[1736518759005,4.4218,3276.9,3275.7,3.2078]
[1736518759204,0.30521,3276.6,3276.1,0.30525]
[1736518759397,0.30524,3276.3,3275.8,0.30528]
[1736518759596,3.2078,3276.4,3275.7,3.2078]
[1736518759805,3.2078,3276.4,3276.0,0.30526]
[1736518760100,1.214,3276.9,3276.0,3.2078]
[1736518760303,0.03545073,3276.5,3276.4,0.30522]
[1736518760805,0.03545073,3276.5,3276.4,40.8]
[1736518761101,3.51295,3277.3,3276.4,40.8]
[1736518761401,0.30517,3277.1,3276.5,0.30521]
[1736518761601,0.30517,3277.1,3276.4,40.8]
[1736518761602,3.2078,3277.3,3276.7,0.30519]
[1736518761901,3.2078,3277.3,3276.4,44.0078]
[1736518762301,0.30518,3276.9,3276.4,44.31302]
[1736518762507,3.2078,3276.7,3276.4,40.8]
[1736518762906,3.1789,3276.7,3276.4,40.8]
[1736518763203,0.30521,3276.5,3276.4,40.8]
[1736518763405,3.1789,3276.7,3276.4,40.8]
[1736518763603,3.4841,3276.7,3276.4,40.8]
[1736518763806,0.30521,3276.6,3276.4,40.8]
[1736518764008,3.4841,3276.7,3276.4,40.8]
[1736518764301,0.30521,3276.5,3276.4,40.8]
[1736518764504,0.30521,3276.5,3275.9,3.2078]
[1736518764505,3.2078,3276.5,3275.9,3.2078]
[1736518764803,0.30526,3276.0,3275.9,3.2078]
[1736518765000,0.30526,3276.0,3275.9,44.0078]
[1736518765395,1.163,3276.4,3275.9,44.0078]
[1736518765601,0.30526,3276.0,3275.9,3.2078]
[1736518765998,1.163,3276.4,3275.9,3.2078]
[1736518766198,0.30526,3276.1,3275.9,3.2078]
[1736518766505,0.30526,3276.0,3275.5,3.2078]
[1736518766708,0.30527,3275.9,3275.7,0.30529]
[1736518766896,1.163,3276.4,3275.7,0.30528]
[1736518767099,1.163,3276.4,3275.7,0.30529]
[1736518767100,0.04185101,3275.8,3275.7,0.30529]
[1736518767603,0.30529,3275.7,3275.6,40.8]
[1736518767801,0.24328405,3275.7,3275.6,40.8]
[1736518768004,0.28513506,3275.7,3275.6,40.8]
[1736518768211,0.04825715,3275.7,3275.6,40.8]
[1736518768402,0.35354715,3275.7,3275.6,40.8]
[1736518768603,0.04825715,3275.7,3275.5,3.2078]
[1736518768901,0.04825715,3275.7,3274.8,3.2078]
[1736518769104,0.04825715,3275.3,3274.8,3.2078]
[1736518769297,0.04825715,3275.3,3275.2,0.30533]
[1736518769500,0.04825715,3275.3,3275.2,3.51313]
[1736518769700,0.04825715,3275.3,3275.2,3.2078]
[1736518769899,0.04825715,3275.3,3274.8,3.32554756]
[1736518769900,0.04825715,3275.3,3274.8,3.51317]
[1736518770100,0.30536,3275.0,3274.9,40.8]
[1736518770606,0.30536,3275.0,3274.1,6.56918368]
[1736518770607,0.76342,3274.9,3274.1,4.58308368]
[1736518770811,0.30543,3274.2,3274.1,4.58308368]
[1736518771307,0.04825715,3274.2,3274.1,4.58308368]
[1736518771503,0.30544,3274.1,3274.0,40.8]
[1736518771709,0.04825715,3274.2,3273.2,4.58308368]
[1736518771910,0.04825715,3274.2,3273.3,0.30551]
[1736518771911,0.3055,3273.5,3273.3,0.30551]
[1736518772101,3.2078,3273.9,3273.2,4.58308368]
[1736518772301,3.2078,3273.9,3273.1,3.2078]
[1736518772302,0.04825715,3273.6,3273.4,40.8]
[1736518772511,0.30547,3273.8,3273.4,41.10549]
[1736518772707,4.4374,3274.8,3273.5,3.2078]
[1736518773106,4.4374,3274.8,3273.5,3.51329]
[1736518773107,0.76349,3274.6,3273.5,3.51329]
[1736518773403,0.30549,3273.6,3273.5,3.2078]
[1736518773599,0.30548,3273.7,3273.5,3.2078]
[1736518773805,0.03547781,3273.6,3273.5,3.2078]
[1736518774007,0.30549,3273.5,3273.4,40.8]
[1736518774608,0.03547781,3273.6,3272.7,3.2078]
[1736518774903,0.04185394,3273.2,3273.1,3.2078]
[1736518775104,0.30555,3273.0,3272.7,3.51336]
[1736518775313,0.04185394,3273.2,3273.1,0.30553]
[1736518775612,0.30547,3273.8,3273.5,0.30549]
[1736518775908,3.2078,3274.3,3273.1,44.0078]
[1736518776210,0.30552,3273.2,3273.1,44.0078]
[1736518776404,0.76367,3273.8,3273.1,44.0078]
[1736518776707,0.30552,3273.2,3273.1,44.0078]
[1736518777411,0.30552,3273.2,3273.1,40.8]
[1736518777813,0.30556,3272.8,3272.7,3.2078]
[1736518778112,1.2661,3273.4,3272.7,3.2078]
[1736518778299,1.2661,3273.4,3273.1,0.30553]
[1736518778505,1.2661,3273.4,3273.1,3.2078]
[1736518778710,0.3055,3273.5,3273.3,0.30551]
[1736518778899,0.3055,3273.5,3273.2,0.30552]
[1736518779107,0.30552,3273.2,3273.1,3.2078]
[1736518779308,0.30555,3272.9,3272.8,40.8]
[1736518780012,0.76374,3273.5,3272.8,40.8]
[1736518780212,0.30555,3272.9,3272.8,40.8]
[1736518781208,0.7637,3273.7,3272.8,40.8]
[1736518781412,0.30549,3273.6,3273.5,0.30549]
[1736518781611,0.30549,3273.6,3273.1,3.2078]
[1736518781612,0.76363,3274.0,3273.2,0.30552]
[1736518781813,0.30552,3273.2,3273.1,3.51333]
[1736518782013,0.30552,3273.2,3273.1,3.2078]
[1736518782313,3.2078,3273.7,3272.8,40.8]
[1736518782508,0.30555,3272.9,3272.8,40.8]
[1736518782911,0.30561,3272.3,3272.2,3.2078]
[1736518783116,0.30565,3271.8,3271.6,3.51347]
[1736518783407,0.45843,3272.3,3271.7,40.8]
[1736518783608,0.30565,3271.8,3271.7,40.8]
[1736518783917,0.76389,3272.9,3271.7,40.8]
[1736518784110,3.2078,3273.0,3271.8,0.30564]
[1736518784111,0.30564,3272.0,3271.8,0.30564]
[1736518784410,5.6091,3273.0,3271.7,40.8]
[1736518784715,0.76394,3272.7,3271.7,40.8]
[1736518785014,0.0354661,3272.2,3271.7,40.8]
[1736518785215,0.0354661,3272.2,3272.1,3.51342]
[1736518785405,3.2078,3273.6,3272.9,0.30554]
[1736518785609,0.76375,3273.5,3272.5,3.2078]
[1736518785806,3.2078,3273.6,3273.0,40.8]
[1736518786110,0.30552,3273.3,3273.0,40.8]
[1736518786322,0.3055,3273.5,3273.4,0.3055]
[1736518786506,1.2294,3273.8,3273.0,40.8]
[1736518786507,1.2294,3273.8,3273.1,3.2078]
[1736518786707,0.30552,3273.3,3273.2,0.30552]
[1736518786907,1.2294,3273.8,3273.1,3.51333]
[1736518786908,0.7637,3273.7,3273.1,3.51333]
[1736518787108,0.30551,3273.4,3273.3,0.30551]
[1736518787416,0.30552,3273.3,3273.2,0.30552]
[1736518787617,1.2294,3273.8,3273.1,3.2078]
[1736518787810,0.30546,3273.9,3273.6,0.30548]
[1736518788009,3.9714,3274.2,3273.5,3.2078]
[1736518788212,3.9714,3274.2,3273.1,3.2078]
[1736518788417,3.9714,3274.2,3273.5,3.2078]
[1736518788715,0.30548,3273.7,3273.6,0.30548]
[1736518789111,3.9714,3274.2,3273.1,3.2078]
[1736518789112,3.2078,3274.2,3273.1,3.2078]
[1736518789510,0.76375,3273.5,3272.4,3.2078]
[1736518789715,3.2078,3273.6,3272.4,3.2078]
[1736518789923,0.30558,3272.6,3272.4,3.51339]
[1736518790213,0.76381,3273.3,3272.5,40.8]
[1736518790412,0.76384,3273.1,3272.5,40.8]
[1736518790614,3.2078,3273.2,3272.5,41.10558]
[1736518790816,3.2078,3273.2,3272.5,40.8]
[1736518791012,0.30558,3272.6,3272.5,40.8]
[1736518791220,0.30557,3272.8,3272.5,41.10559]
[1736518791514,0.0354661,3272.9,3272.6,0.30557]
[1736518791719,0.30556,3272.8,3272.5,41.10558]
[1736518792016,0.0354661,3272.7,3272.5,40.8]
[1736518792215,0.0354661,3272.7,3272.6,0.30558]
[1736518792615,0.0354661,3272.7,3272.5,40.8]